fUSD/lending_fUSD_20240428
["ID","MTS","AMOUNT","RATE_DAILY","PERIOD"]
[323779592,1714288239747,-851.68,0.00016438,2]
[323779593,1714288239757,-1639.46,0.00016438,2]
[323779594,1714288239767,-500.0,0.00016438,2]
[323779595,1714288239776,-504.891321,0.00016438,2]
[323779596,1714288239785,-500.0,0.00016438,2]
[323779597,1714288239796,-2533.48,0.00016438,2]
[323779598,1714288239805,-500.0,0.00016438,2]
[323779603,1714288239814,-2619.38,0.00016438,2]
[323779606,1714288240048,-10344.68,0.00016438,2]
[323779607,1714288240058,-13708.37,0.00016438,2]
[323779608,1714288240068,-506.22541868,0.00016438,2]
[323779609,1714288240078,-500.0,0.00016438,2]
[323779610,1714288240087,-1094.79,0.00016438,2]
[323779611,1714288240096,-552.48,0.00016438,2]
[323779612,1714288240106,-1372.92,0.00016438,2]
[323779613,1714288240115,-519.84,0.00016438,2]
[323779614,1714288240124,-5155.94,0.00016438,2]
[323779615,1714288240133,-969.89,0.00016438,2]
[323779616,1714288240142,-553.42,0.00016438,2]
[323779617,1714288240151,-500.0,0.00016438,2]
[323779618,1714288240161,-194.4537072,0.00016438,2]
[323779619,1714288240170,-500.0,0.00016438,2]
[323779620,1714288240179,-500.0,0.00016438,2]
[323779621,1714288240188,-571.46,0.00016438,2]
[323779622,1714288240198,-507.20446814,0.00016438,2]
[323779623,1714288240207,-1448.38,0.00016438,2]
[323779624,1714288240216,-3440.86,0.00016438,2]
[323779625,1714288240225,-1283.73,0.00016438,2]
[323779626,1714288240234,-6023.3,0.00016438,2]
[323779627,1714288240244,-2269.29,0.00016438,2]
[323779628,1714288240253,-2295.92,0.00016438,2]
[323779629,1714288240262,-8486.11,0.00016438,2]
[323779630,1714288240271,-71029.5,0.00016438,2]
[323779631,1714288240281,-500.0,0.00016438,2]
[323779632,1714288240290,-509.35,0.00016438,2]
[323779633,1714288240300,-500.0,0.00016438,2]
[323779634,1714288240309,-503.97663184,0.00016438,2]
[323779635,1714288240319,-151.568633,0.00016438,2]
[323779636,1714288240328,-500.0,0.00016438,2]
[323779637,1714288240337,-293.768098,0.00016438,2]
[323779638,1714288240347,-293.768098,0.00016438,2]
[323779639,1714288240357,-293.768098,0.00016438,2]
[323779640,1714288240366,-293.768098,0.00016438,2]
[323779641,1714288240375,-2587.02,0.00016438,2]
[323779642,1714288240384,-1155.36,0.00016438,2]
[323779643,1714288240394,-293.768098,0.00016438,2]
[323779644,1714288240404,-293.768098,0.00016438,2]
[323779645,1714288240413,-2367.02,0.00016438,2]
[323779646,1714288240423,-293.768098,0.00016438,2]
[323779647,1714288240432,-293.768098,0.00016438,2]
[323779648,1714288240441,-500.0,0.00016438,2]
[323779649,1714288240451,-500.0,0.00016438,2]
[323779650,1714288240460,-500.0,0.00016438,2]
[323779651,1714288240469,-501.41289393,0.00016438,2]
[323779652,1714288240478,-2378.08,0.00016438,2]
[323779653,1714288240488,-1751.04,0.00016438,2]
[323779654,1714288240497,-18882.81,0.00016438,2]
[323779655,1714288240507,-501.53097003,0.00016438,2]
[323779656,1714288240516,-500.0,0.00016438,2]
[323779657,1714288240525,-3774.4,0.00016438,2]
[323779658,1714288240535,-500.0,0.00016438,2]
[323779659,1714288240546,-1092.02,0.00016438,2]
[323779660,1714288240555,-1948.48,0.00016438,2]
[323779661,1714288240565,-500.0,0.00016438,2]
[323779662,1714288240575,-2273.03,0.00016438,2]
[323779663,1714288240584,-321.00489737,0.00016438,2]
[323779664,1714288240594,-2289.64,0.00016438,2]
[323779665,1714288240603,-6896.01,0.00016438,2]
[323779666,1714288240613,-6896.01,0.00016438,2]
[323779667,1714288240624,-6896.01,0.00016438,2]
[323779668,1714288240634,-6896.01,0.00016438,2]
[323779669,1714288240643,-6896.01,0.00016438,2]
[323779670,1714288240654,-500.0,0.00016438,2]
[323779671,1714288240666,-1870.29,0.00016438,2]
[323779672,1714288240676,-217.88403,0.00016438,2]
[323779673,1714288240687,-217.88403,0.00016438,2]
[323779674,1714288240696,-500.0,0.00016438,2]
[323779675,1714288240707,-217.88403,0.00016438,2]
[323779676,1714288240717,-217.88403,0.00016438,2]
[323779677,1714288240727,-217.88403,0.00016438,2]
[323779678,1714288240737,-852.76,0.00016438,2]
[323779679,1714288240747,-9380.21,0.00016438,2]
[323779680,1714288240759,-217.88403,0.00016438,2]
[323779681,1714288240771,-217.88403,0.00016438,2]
[323779682,1714288240781,-217.88403,0.00016438,2]
[323779683,1714288240792,-217.88403,0.00016438,2]
[323779684,1714288240803,-217.88403,0.00016438,2]
[323779685,1714288240813,-502.16700979,0.00016438,2]
[323779686,1714288240823,-500.0,0.00016438,2]
[323779687,1714288240834,-906.55,0.00016438,2]
[323779688,1714288240843,-7493.55,0.00016438,2]
[323779689,1714288240853,-500.0,0.00016438,2]
[323779690,1714288240863,-500.0,0.00016438,2]
[323779691,1714288240871,-2404.35,0.00016438,2]
[323779692,1714288240882,-2243.61,0.00016438,2]
[323779693,1714288240891,-503.23874628,0.00016438,2]
[323779694,1714288240900,-2574.82,0.00016438,2]
[323779695,1714288240912,-9958.88,0.00016438,2]
[323779696,1714288240923,-500.0,0.00016438,2]
[323779697,1714288240935,-500.0,0.00016438,2]
[323779698,1714288240946,-500.0,0.00016438,2]
[323779699,1714288240956,-500.0,0.00016438,2]
[323779700,1714288240976,-500.0,0.00016438,2]
[323779701,1714288240986,-462.81399721,0.00016438,2]
[323779702,1714288241001,-500.0,0.00016438,2]
[323779703,1714288241011,-500.0,0.00016438,2]
[323779704,1714288241022,-10744.88,0.00016438,2]
[323779705,1714288241034,-1316.27,0.00016438,2]
[323779706,1714288241044,-47065.16,0.00016438,2]
[323779707,1714288241055,-2851.35,0.00016438,2]
[323779708,1714288241065,-500.0,0.00016438,2]
[323779709,1714288241077,-4502.4,0.00016438,2]
[323779710,1714288241087,-500.0,0.00016438,2]
[323779711,1714288241098,-4705.59,0.00016438,2]
[323779712,1714288241109,-500.0,0.00016438,2]
[323779713,1714288241120,-500.0,0.00016438,2]
[323779714,1714288241130,-500.0,0.00016438,2]
[323779715,1714288241142,-537.66,0.00016438,2]
[323779716,1714288241152,-510.37892062,0.00016438,2]
[323779717,1714288241162,-500.0,0.00016438,2]
[323779718,1714288241172,-500.0,0.00016438,2]
[323779719,1714288241182,-500.0,0.00016438,2]
[323779720,1714288241192,-2140.63,0.00016438,2]
[323779721,1714288241202,-3151.64,0.00016438,2]
[323779722,1714288241212,-8430.0,0.00016438,2]
[323779723,1714288241223,-764.61,0.00016438,2]
[323779724,1714288241233,-3323.5,0.00016438,2]
[323779725,1714288241243,-2061.35,0.00016438,2]
[323779726,1714288241253,-1666.69,0.00016438,2]
[323779727,1714288241263,-500.0,0.00016438,2]
[323779728,1714288241273,-2469.6,0.00016438,2]
[323779729,1714288241282,-500.0,0.00016438,2]
[323779730,1714288241292,-500.0,0.00016438,2]
[323779731,1714288241302,-501.78556726,0.00016438,2]
[323779732,1714288241313,-1800.42,0.00016438,2]
[323779733,1714288241324,-336.56711866,0.00016438,2]
[323779734,1714288241334,-500.0,0.00016438,2]
[323779735,1714288241346,-500.0,0.00016438,2]
[323779736,1714288241356,-153.378093,0.00016438,2]
[323779737,1714288241367,-284.05338401,0.00016438,2]
[323779738,1714288241378,-1307.81,0.00016438,2]
[323779739,1714288241388,-500.0,0.00016438,2]
[323779740,1714288241397,-500.0,0.00016438,2]
[323779741,1714288241406,-500.0,0.00016438,2]
[323779742,1714288241415,-500.0,0.00016438,2]
[323779743,1714288241425,-526.72956517,0.00016438,2]
[323779744,1714288241435,-3337.89,0.00016438,2]
[323779745,1714288241445,-724.39,0.00016438,2]
[323779746,1714288241455,-500.0,0.00016438,2]
[323779747,1714288241466,-1086.02,0.00016438,2]
[323779748,1714288241476,-189.76920388,0.00016438,2]
[323779749,1714288241488,-500.0,0.00016438,2]
[323779750,1714288241498,-16374.32,0.00016438,2]
[323779751,1714288241509,-500.0,0.00016438,2]
[323779752,1714288241522,-526.3,0.00016438,2]
[323779753,1714288241533,-500.0,0.00016438,2]
[323779754,1714288241544,-1658.16,0.00016438,2]
[323779755,1714288241556,-500.0,0.00016438,2]
[323779756,1714288241570,-3380.9,0.00016438,2]
[323779757,1714288241580,-3067.77,0.00016438,2]
[323779758,1714288241591,-500.0,0.00016438,2]
[323779759,1714288241601,-276.57666286,0.00016438,2]
[323779760,1714288241612,-500.0,0.00016438,2]
[323779761,1714288241622,-244.96759457,0.00016438,2]
[323779762,1714288241636,-500.0,0.00016438,2]
[323779763,1714288241649,-500.0,0.00016438,2]
[323779764,1714288241663,-3529.57,0.00016438,2]
[323779765,1714288241674,-500.0,0.00016438,2]
[323779766,1714288241688,-500.0,0.00016438,2]
[323779767,1714288241700,-11027.25,0.00016438,2]
[323779768,1714288241711,-500.0,0.00016438,2]
[323779769,1714288241722,-500.0,0.00016438,2]
[323779770,1714288241733,-500.0,0.00016438,2]
[323779771,1714288241742,-19587.44,0.00016438,2]
[323779772,1714288241751,-552.46,0.00016438,2]
[323779773,1714288241762,-4854.24,0.00016438,2]
[323779774,1714288241772,-2620.78,0.00016438,2]
[323779775,1714288241782,-501.91917933,0.00016438,2]
[323779776,1714288241794,-500.0,0.00016438,2]
[323779777,1714288241804,-500.0,0.00016438,2]
[323779778,1714288241814,-2074.4,0.00016438,2]
[323779779,1714288241826,-500.0,0.00016438,2]
[323779780,1714288241845,-500.0,0.00016438,2]
[323779781,1714288241857,-1024.54,0.00016438,2]
[323779782,1714288241868,-500.0,0.00016438,2]
[323779783,1714288241878,-1012.58,0.00016438,2]
[323779784,1714288241889,-7087.81,0.00016438,2]
[323779785,1714288241898,-730.49,0.00016438,2]
[323779786,1714288241909,-523.63,0.00016438,2]
[323779787,1714288241918,-3038.91,0.00016438,2]
[323779788,1714288241929,-1113.64,0.00016438,2]
[323779789,1714288241942,-681.02,0.00016438,2]
[323779790,1714288241953,-500.0,0.00016438,2]
[323779791,1714288241963,-500.0,0.00016438,2]
[323779792,1714288241972,-515.03608798,0.00016438,2]
[323779793,1714288241984,-500.0,0.00016438,2]
[323779794,1714288242000,-1072.52,0.00016438,2]
[323779795,1714288242010,-500.0,0.00016438,2]
[323779796,1714288242021,-504.30386288,0.00016438,2]
[323779797,1714288242031,-2266.18,0.00016438,2]
[323779798,1714288242044,-681.75,0.00016438,2]
[323779799,1714288242055,-7560.77,0.00016438,2]
[323779800,1714288242068,-503.307784,0.00016438,2]
[323779801,1714288242077,-1101.49,0.00016438,2]
[323779802,1714288242088,-500.0,0.00016438,2]
[323779803,1714288242099,-4932.09,0.00016438,2]
[323779804,1714288242108,-1141.37,0.00016438,2]
[323779805,1714288242118,-2008.76,0.00016438,2]
[323779806,1714288242128,-500.0,0.00016438,2]
[323779807,1714288242139,-557.43,0.00016438,2]
[323779808,1714288242151,-2044.21,0.00016438,2]
[323779809,1714288242161,-898.91,0.00016438,2]
[323779810,1714288242172,-536.92,0.00016438,2]
[323779811,1714288242182,-1731.27,0.00016438,2]
[323779812,1714288242192,-1770.56,0.00016438,2]
[323779813,1714288242202,-10711.31,0.00016438,2]
[323779814,1714288242212,-1935.24,0.00016438,2]
[323779815,1714288242222,-500.0,0.00016438,2]
[323779816,1714288242233,-500.0,0.00016438,2]
[323779817,1714288242243,-1596.47,0.00016438,2]
[323779818,1714288242253,-500.0,0.00016438,2]
[323779819,1714288242265,-6284.75,0.00016438,2]
[323779820,1714288242276,-1027.3,0.00016438,2]
[323779821,1714288242286,-500.0,0.00016438,2]
[323779822,1714288242298,-1330.09,0.00016438,2]
[323779823,1714288242309,-4713.98058318,0.00016438,2]
[323779824,1714288242356,-4682.00941682,0.00016438,2]
[323779825,1714288242368,-500.0,0.00016438,2]
[323779826,1714288242378,-3482.83,0.00016438,2]
[323779827,1714288242389,-1827.07,0.00016438,2]
[323779828,1714288242399,-500.0,0.00016438,2]
[323779829,1714288242409,-1015.34,0.00016438,2]
[323779830,1714288242419,-500.0,0.00016438,2]
[323779831,1714288242430,-3713.26,0.00016438,2]
[323779832,1714288242439,-500.0,0.00016438,2]
[323779833,1714288242449,-3171.03,0.00016438,2]
[323779834,1714288242460,-6703.84,0.00016438,2]
[323779835,1714288242469,-8692.84,0.00016438,2]
[323779836,1714288242480,-1455.28,0.00016438,2]
[323779837,1714288242490,-1879.0,0.00016438,2]
[323779838,1714288242500,-2018.08,0.00016438,2]
[323779839,1714288242510,-958.48,0.00016438,2]
[323779840,1714288242520,-2847.98,0.00016438,2]
[323779841,1714288242530,-500.0,0.00016438,2]
[323779842,1714288242540,-225.25,0.00016452,2]
[323779843,1714288242551,-481.59,0.00016595,2]
[323779844,1714288242561,-183.63029454,0.00016612,2]
[323779845,1714288242572,-192.22634229,0.00016612,2]
[323779879,1714288244787,-250.0,0.00013699,2]
[323779880,1714288244799,-500.0,0.00016438,2]
[323779881,1714288244808,-597.6387897,0.00016612,2]
[323779882,1714288244818,-588.30079446,0.00016612,2]
[323779883,1714288244827,-10000.0,0.00016711,2]
[323779884,1714288244839,-1861.5,0.00016711,2]
[323779885,1714288244849,-6896.01,0.00016711,2]
[323779886,1714288244858,-500.0,0.00016712,2]
[323779887,1714288244869,-500.0,0.00016712,2]
[323779888,1714288244878,-552.32,0.00016712,2]
[323779889,1714288244888,-1285.47,0.00016712,2]
[323779890,1714288244897,-167.33843038,0.00016712,2]
[323779891,1714288244906,-500.0,0.00016712,2]
[323779892,1714288244915,-1146.61,0.00016712,2]
[323779893,1714288244924,-573.89,0.00016712,2]
[323779894,1714288244933,-500.0,0.00016712,2]
[323779895,1714288244942,-500.0,0.00016712,2]
[323779896,1714288244951,-500.0,0.00016712,2]
[323779897,1714288244960,-500.0,0.00016712,2]
[323779898,1714288244969,-500.0,0.00016712,2]
[323779899,1714288244979,-500.0,0.00016712,2]
[323779900,1714288244988,-500.0,0.00016712,2]
[323779901,1714288244999,-500.0,0.00016712,2]
[323779902,1714288245008,-500.0,0.00016712,2]
[323779903,1714288245017,-500.0,0.00016712,2]
[323779904,1714288245026,-593.53467167,0.00016712,2]
[323779905,1714288245036,-500.0,0.00016712,2]
[323779906,1714288245046,-156.35517388,0.00016712,2]
[323779907,1714288245055,-565.91,0.00016712,2]
[323779908,1714288245067,-500.0,0.00016712,2]
[323779909,1714288245076,-626.03,0.00016712,2]
[323779910,1714288245086,-500.0,0.00016712,2]
[323779911,1714288245096,-500.0,0.00016712,2]
[323779912,1714288245105,-504.2737944,0.00016712,2]
[323779913,1714288245116,-500.0,0.00016712,2]
[323779914,1714288245127,-500.0,0.00016712,2]
[323779915,1714288245137,-867.33,0.00016712,2]
[323779916,1714288245146,-500.0,0.00016712,2]
[323779917,1714288245155,-705.59,0.00016712,2]
[323779918,1714288245164,-500.0,0.00016712,2]
[323779919,1714288245173,-500.0,0.00016712,2]
[323779920,1714288245182,-500.0,0.00016712,2]
[323779921,1714288245191,-1385.61,0.00016712,2]
[323779922,1714288245200,-500.0,0.00016712,2]
[323779923,1714288245209,-500.0,0.00016712,2]
[323779924,1714288245218,-500.0,0.00016712,2]
[323779925,1714288245227,-500.0,0.00016712,2]
[323779926,1714288245236,-500.0,0.00016712,2]
[323779927,1714288245245,-500.0,0.00016712,2]
[323779928,1714288245254,-500.0,0.00016712,2]
[323779929,1714288245263,-1709.49,0.00016712,2]
[323779930,1714288245272,-500.0,0.00016712,2]
[323779931,1714288245282,-500.0,0.00016712,2]
[323779932,1714288245290,-500.0,0.00016712,2]
[323779933,1714288245302,-500.0,0.00016712,2]
[323779934,1714288245311,-1893.56,0.00016712,2]
[323779935,1714288245321,-500.0,0.00016712,2]
[323779936,1714288245331,-1523.55,0.00016712,2]
[323779937,1714288245340,-500.0,0.00016712,2]
[323779938,1714288245349,-500.0,0.00016712,2]
[323779939,1714288245358,-500.0,0.00016712,2]
[323779940,1714288245367,-500.0,0.00016712,2]
[323779941,1714288245377,-500.0,0.00016712,2]
[323779942,1714288245386,-500.0,0.00016712,2]
[323779943,1714288245395,-500.0,0.00016712,2]
[323779944,1714288245404,-1251.41,0.00016712,2]
[323779945,1714288245416,-500.0,0.00016712,2]
[323779946,1714288245425,-500.0,0.00016712,2]
[323779947,1714288245435,-505.43481346,0.00016712,2]
[323779948,1714288245445,-603.53,0.00016712,2]
[323779949,1714288245454,-500.0,0.00016712,2]
[323779950,1714288245464,-500.0,0.00016712,2]
[323779951,1714288245473,-500.0,0.00016712,2]
[323779952,1714288245482,-1756.36,0.00016712,2]
[323779953,1714288245492,-503.27656726,0.00016712,2]
[323779954,1714288245501,-634.7,0.00016712,2]
[323779955,1714288245511,-500.0,0.00016712,2]
[323779956,1714288245520,-500.0,0.00016712,2]
[323779957,1714288245531,-500.0,0.00016712,2]
[323779958,1714288245540,-1685.87,0.00016712,2]
[323779959,1714288245551,-500.0,0.00016712,2]
[323779960,1714288245560,-500.0,0.00016712,2]
[323779961,1714288245569,-500.0,0.00016712,2]
[323779962,1714288245578,-2460.72,0.00016712,2]
[323779963,1714288245587,-502.65639107,0.00016712,2]
[323779964,1714288245596,-556.08,0.00016712,2]
[323779965,1714288245606,-500.0,0.00016712,2]
[323779966,1714288245615,-1112.92,0.00016712,2]
[323779967,1714288245626,-500.0,0.00016712,2]
[323779968,1714288245635,-621.45,0.00016712,2]
[323779969,1714288245645,-500.0,0.00016712,2]
[323779970,1714288245655,-1086.21,0.00016712,2]
[323779971,1714288245665,-795.62,0.00016712,2]
[323779972,1714288245675,-500.0,0.00016712,2]
[323779973,1714288245684,-500.48181571,0.00016712,2]
[323779974,1714288245693,-500.0,0.00016712,2]
[323779975,1714288245702,-500.0,0.00016712,2]
[323779976,1714288245711,-878.67,0.00016712,2]
[323779977,1714288245720,-1784.82,0.00016712,2]
[323779978,1714288245730,-500.0,0.00016712,2]
[323779984,1714288245968,-985.54,0.00016712,2]
[323779985,1714288245979,-500.0,0.00016712,2]
[323779986,1714288245989,-500.0,0.00016712,2]
[323779987,1714288246002,-500.0,0.00016712,2]
[323779988,1714288246011,-2070.66,0.00016712,2]
[323779989,1714288246020,-500.0,0.00016712,2]
[323779990,1714288246029,-923.47,0.00016712,2]
[323779991,1714288246039,-1719.61,0.00016712,2]
[323779992,1714288246049,-551.11,0.00016712,2]
[323779993,1714288246058,-500.0,0.00016712,2]
[323779994,1714288246067,-500.0,0.00016712,2]
[323779995,1714288246076,-733.22,0.00016712,2]
[323779996,1714288246085,-256.34401348,0.00016712,2]
[323779997,1714288246094,-500.0,0.00016712,2]
[323779998,1714288246103,-311.59501311,0.00016712,2]
[323779999,1714288246113,-1122.54,0.00016712,2]
[323780000,1714288246121,-960.79,0.00016712,2]
[323780001,1714288246130,-579.5362795,0.00016712,2]
[323780002,1714288246140,-500.0,0.00016712,2]
[323780003,1714288246149,-2126.5,0.00016712,2]
[323780004,1714288246160,-500.0,0.00016712,2]
[323780005,1714288246169,-670.58,0.00016712,2]
[323780006,1714288246178,-501.32527678,0.00016712,2]
[323780007,1714288246187,-674.51,0.00016712,2]
[323780008,1714288246196,-902.12,0.00016712,2]
[323780009,1714288246206,-502.00729791,0.00016712,2]
[323780010,1714288246215,-500.0,0.00016712,2]
[323780011,1714288246224,-500.0,0.00016712,2]
[323780012,1714288246233,-500.0,0.00016712,2]
[323780013,1714288246242,-500.0,0.00016712,2]
[323780014,1714288246251,-500.0,0.00016712,2]
[323780015,1714288246260,-500.0,0.00016712,2]
[323780016,1714288246270,-500.0,0.00016712,2]
[323780017,1714288246279,-595.38062294,0.00016712,2]
[323780018,1714288246289,-500.0,0.00016712,2]
[323780019,1714288246299,-500.0,0.00016712,2]
[323780020,1714288246309,-2653.69,0.00016712,2]
[323780021,1714288246319,-500.0,0.00016712,2]
[323780022,1714288246329,-500.0,0.00016712,2]
[323780023,1714288246338,-500.0,0.00016712,2]
[323780024,1714288246347,-500.0,0.00016712,2]
[323780025,1714288246359,-500.0,0.00016712,2]
[323780026,1714288246369,-922.8,0.00016712,2]
[323780027,1714288246378,-500.0,0.00016712,2]
[323780028,1714288246387,-500.0,0.00016712,2]
[323780029,1714288246396,-500.0,0.00016712,2]
[323780030,1714288246405,-500.0,0.00016712,2]
[323780031,1714288246414,-1439.61,0.00016712,2]
[323780032,1714288246423,-607.99,0.00016712,2]
[323780033,1714288246432,-500.0,0.00016712,2]
[323780034,1714288246441,-272.81592221,0.00016712,2]
[323780035,1714288246451,-500.0,0.00016712,2]
[323780036,1714288246460,-500.0,0.00016712,2]
[323780037,1714288246469,-500.0,0.00016712,2]
[323780038,1714288246479,-529.69,0.00016712,2]
[323780039,1714288246488,-1175.44,0.00016712,2]
[323780040,1714288246498,-953.07,0.00016712,2]
[323780041,1714288246507,-500.0,0.00016712,2]
[323780042,1714288246516,-500.0,0.00016712,2]
[323780043,1714288246525,-509.26636408,0.00016712,2]
[323780044,1714288246535,-500.0,0.00016712,2]
[323780045,1714288246545,-661.72,0.00016712,2]
[323780046,1714288246553,-1071.74,0.00016712,2]
[323780047,1714288246562,-500.0,0.00016712,2]
[323780048,1714288246572,-1202.84,0.00016712,2]
[323780049,1714288246581,-1178.0,0.00016712,2]
[323780050,1714288246590,-500.0,0.00016712,2]
[323780051,1714288246599,-1271.42,0.00016712,2]
[323780052,1714288246609,-845.31,0.00016712,2]
[323780053,1714288246618,-500.0,0.00016712,2]
[323780054,1714288246626,-500.0,0.00016712,2]
[323780055,1714288246636,-500.0,0.00016712,2]
[323780056,1714288246645,-541.99,0.00016712,2]
[323780057,1714288246654,-628.28,0.00016712,2]
[323780058,1714288246663,-500.0,0.00016712,2]
[323780059,1714288246673,-539.86,0.00016712,2]
[323780060,1714288246682,-641.76,0.00016712,2]
[323780061,1714288246691,-500.0,0.00016712,2]
[323780062,1714288246701,-567.19349719,0.00016712,2]
[323780063,1714288246710,-1072.98,0.00016712,2]
[323780064,1714288246720,-500.0,0.00016712,2]
[323780065,1714288246729,-500.0,0.00016712,2]
[323780066,1714288246739,-2141.35,0.00016712,2]
[323780067,1714288246748,-500.0,0.00016712,2]
[323780068,1714288246758,-500.0,0.00016712,2]
[323780069,1714288246767,-500.0,0.00016712,2]
[323780070,1714288246776,-578.54,0.00016712,2]
[323780071,1714288246785,-531.06,0.00016712,2]
[323780072,1714288246795,-500.0,0.00016712,2]
[323780073,1714288246805,-1814.39,0.00016712,2]
[323780074,1714288246814,-518.3,0.00016712,2]
[323780075,1714288246824,-564.33,0.00016712,2]
[323780076,1714288246833,-539.99,0.00016712,2]
[323780077,1714288246843,-500.0,0.00016712,2]
[323780078,1714288246852,-558.04291659,0.00016712,2]
[323780079,1714288246861,-500.0,0.00016712,2]
[323780080,1714288246870,-583.21,0.00016712,2]
[323780081,1714288246879,-500.0,0.00016712,2]
[323780082,1714288246889,-579.1,0.00016712,2]
[323780083,1714288246898,-556.42,0.00016712,2]
[323780084,1714288246906,-1048.44,0.00016712,2]
[323780085,1714288246915,-955.06,0.00016712,2]
[323780086,1714288246924,-500.0,0.00016712,2]
[323780087,1714288246934,-500.0,0.00016712,2]
[323780088,1714288246943,-1823.64,0.00016712,2]
[323780089,1714288246952,-218.59541938,0.00016712,2]
[323780090,1714288246961,-500.0,0.00016712,2]
[323780091,1714288246971,-500.0,0.00016712,2]
[323780092,1714288246980,-697.66,0.00016712,2]
[323780093,1714288246990,-505.48631221,0.00016712,2]
[323780094,1714288247001,-546.22,0.00016712,2]
[323780095,1714288247010,-575.31,0.00016712,2]
[323780096,1714288247020,-500.0,0.00016712,2]
[323780097,1714288247029,-519.08,0.00016712,2]
[323780098,1714288247040,-1942.9,0.00016712,2]
[323780099,1714288247049,-573.15,0.00016712,2]
[323780100,1714288247058,-500.0,0.00016712,2]
[323780101,1714288247070,-518.65,0.00016712,2]
[323780102,1714288247080,-502.9,0.00016712,2]
[323780103,1714288247089,-933.09,0.00016712,2]
[323780104,1714288247099,-1083.3,0.00016712,2]
[323780105,1714288247108,-500.0,0.00016712,2]
[323780106,1714288247118,-1052.22,0.00016712,2]
[323780107,1714288247127,-503.43165039,0.00016712,2]
[323780108,1714288247136,-835.21,0.00016712,2]
[323780109,1714288247145,-517.69073984,0.00016712,2]
[323780110,1714288247154,-500.0,0.00016712,2]
[323780111,1714288247164,-970.41,0.00016712,2]
[323780112,1714288247173,-501.49320003,0.00016712,2]
[323780113,1714288247182,-500.0,0.00016712,2]
[323780114,1714288247191,-500.0,0.00016712,2]
[323780115,1714288247200,-885.97,0.00016712,2]
[323780116,1714288247209,-521.09708557,0.00016712,2]
[323780117,1714288247218,-500.0,0.00016712,2]
[323780118,1714288247227,-662.38,0.00016712,2]
[323780119,1714288247237,-500.0,0.00016712,2]
[323780120,1714288247246,-507.58095314,0.00016712,2]
[323780121,1714288247256,-1026.29,0.00016712,2]
[323780122,1714288247265,-500.0,0.00016712,2]
[323780123,1714288247275,-500.0,0.00016712,2]
[323780124,1714288247284,-635.2,0.00016712,2]
[323780125,1714288247293,-500.0,0.00016712,2]
[323780126,1714288247302,-502.64842949,0.00016712,2]
[323780127,1714288247311,-500.0,0.00016712,2]
[323780128,1714288247322,-789.86,0.00016712,2]
[323780129,1714288247331,-500.0,0.00016712,2]
[323780130,1714288247341,-590.75,0.00016712,2]
[323780131,1714288247351,-1732.71,0.00016712,2]
[323780132,1714288247360,-869.8,0.00016712,2]
[323780133,1714288247370,-500.0,0.00016712,2]
[323780134,1714288247379,-500.0,0.00016712,2]
[323780135,1714288247388,-524.2,0.00016712,2]